[Event "Titled Tuesday Blitz March 07 Late 2023"]
[White "Matinian, Nikita"]
[Black "Pert, Richard G"]
[WhiteFideId "24129100"]
[BlackFideId "404748"]
[WhiteElo "2422"]
[BlackElo "2441"]
[Result "0-1"]
[Round "06"]
[TimeControl "180+2"]
[Date "2023.03.07"]
[WhiteClock "0:00:02"]
[BlackClock "0:00:09"]

1. e4 {[%clk 0:03:00]}  g6 {[%clk 0:02:57]} 2. d4 {[%clk 0:03:00]}  Bg7 {[%clk 0:02:58]} 3. Nc3 {[%clk 0:03:01]}  c6 {[%clk 0:02:58]} 4. h4 {[%clk 0:02:58]}  h5 {[%clk 0:02:54]} 5. Nh3 {[%clk 0:02:55]}  d5 {[%clk 0:02:53]} 6. exd5 {[%clk 0:02:54]}  cxd5 {[%clk 0:02:53]} 7. Bb5+ {[%clk 0:02:50]}  Nc6 {[%clk 0:02:51]} 8. Ng5 {[%clk 0:02:47]}  Nf6 {[%clk 0:02:44]} 9. Bf4 {[%clk 0:02:47]}  Bf5 {[%clk 0:02:37]} 10. Qd2 {[%clk 0:02:44]}  Rc8 {[%clk 0:02:35]} 11. f3 {[%clk 0:02:30]}  a6 {[%clk 0:02:35]} 12. Bxc6+ {[%clk 0:02:28]}  Rxc6 {[%clk 0:02:35]} 13. Be5 {[%clk 0:02:28]}  b5 {[%clk 0:02:25]} 14. a3 {[%clk 0:02:28]}  Qb6 {[%clk 0:02:17]} 15. Rc1 {[%clk 0:02:25]}  Rc4 {[%clk 0:02:08]} 16. Nd1 {[%clk 0:02:19]}  O-O {[%clk 0:02:04]} 17. Ne3 {[%clk 0:02:17]}  Rcc8 {[%clk 0:01:59]} 18. Nxf5 {[%clk 0:02:16]}  gxf5 {[%clk 0:02:00]} 19. Qf4 {[%clk 0:02:01]}  e6 {[%clk 0:01:38]} 20. g4 {[%clk 0:01:50]}  hxg4 {[%clk 0:01:33]} 21. h5 {[%clk 0:01:49]}  Nh7 {[%clk 0:01:21]} 22. Bxg7 {[%clk 0:01:18]}  Kxg7 {[%clk 0:01:20]} 23. fxg4 {[%clk 0:01:18]}  f6 {[%clk 0:01:12]} 24. Nxh7 {[%clk 0:01:12]}  Kxh7 {[%clk 0:01:13]} 25. gxf5 {[%clk 0:01:07]}  e5 {[%clk 0:01:13]} 26. dxe5 {[%clk 0:00:58]}  fxe5 {[%clk 0:01:14]} 27. Qf2 {[%clk 0:00:44]}  Qh6 {[%clk 0:01:06]} 28. Rd1 {[%clk 0:00:41]}  Rc4 {[%clk 0:01:00]} 29. Rd2 {[%clk 0:00:20]}  Kh8 {[%clk 0:00:39]} 30. Kd1 {[%clk 0:00:19]}  Rf4 {[%clk 0:00:37]} 31. Qe2 {[%clk 0:00:14]}  R4xf5 {[%clk 0:00:30]} 32. Rxd5 {[%clk 0:00:12]}  Qe6 {[%clk 0:00:24]} 33. Rd2 {[%clk 0:00:08]}  Qa2 {[%clk 0:00:22]} 34. Ke1 {[%clk 0:00:07]}  Qxb2 {[%clk 0:00:20]} 35. h6 {[%clk 0:00:04]}  Qa1+ {[%clk 0:00:20]} 36. Rd1 {[%clk 0:00:04]}  Qc3+ {[%clk 0:00:20]} 37. Rd2 {[%clk 0:00:04]}  Qg3+ {[%clk 0:00:18]} 38. Kd1 {[%clk 0:00:04]}  Qxa3 {[%clk 0:00:17]} 39. Rd3 {[%clk 0:00:01]}  Qa1+ {[%clk 0:00:15]} 40. Kd2 {[%clk 0:00:02]}  Qxh1 {[%clk 0:00:14]} 41. Qg4 {[%clk 0:00:02]}  Rf2+ {[%clk 0:00:11]} 42. Kc3 {[%clk 0:00:02]}  Qa1+ {[%clk 0:00:10]} 43. Kb3 {[%clk 0:00:02]}  Qb1+ {[%clk 0:00:09]} 44. Ka3 {[%clk 0:00:02]}  Qc1+ {[%clk 0:00:09]} 45. Kb3 {[%clk 0:00:02]}  Qxc2+ {[%clk 0:00:09]} 0-1


[Site "https://www.chess.com"]

[Event "Titled Tuesday Blitz March 07 Late 2023"]
[White "Sokolin, Leonid"]
[Black "Sai Krishna G V"]
[WhiteFideId "2009161"]
[BlackFideId "5028280"]
[WhiteElo "2394"]
[BlackElo "2359"]
[Result "1-0"]
[Round "06"]
[TimeControl "180+2"]
[Date "2023.03.07"]
[WhiteClock "0:02:16"]
[BlackClock "0:02:26"]

1. e4 {[%clk 0:03:00]}  e5 {[%clk 0:03:00]} 2. Nf3 {[%clk 0:03:00]}  Nc6 {[%clk 0:03:00]} 3. Nc3 {[%clk 0:03:00]}  Nf6 {[%clk 0:03:00]} 4. Bb5 {[%clk 0:02:58]}  Bb4 {[%clk 0:03:00]} 5. O-O {[%clk 0:02:55]}  O-O {[%clk 0:03:00]} 6. Bxc6 {[%clk 0:02:49]}  bxc6 {[%clk 0:02:53]} 7. Nxe5 {[%clk 0:02:49]}  Re8 {[%clk 0:02:47]} 8. d4 {[%clk 0:02:44]}  Bxc3 {[%clk 0:02:47]} 9. bxc3 {[%clk 0:02:38]}  Nxe4 {[%clk 0:02:48]} 10. Re1 {[%clk 0:02:38]}  d5 {[%clk 0:02:41]} 11. f3 {[%clk 0:02:36]}  Nxc3 {[%clk 0:02:34]} 12. Qd2 {[%clk 0:02:36]}  Nb5 {[%clk 0:02:31]} 13. Nxc6 {[%clk 0:02:17]}  Bd7 {[%clk 0:02:26]} 14. Nxd8 {[%clk 0:02:16]} 1-0


[Site "https://www.chess.com"]

[Event "Titled Tuesday Blitz March 07 Late 2023"]
[White "Kochetov, Andrey"]
[Black "Zarubitski, Viachaslau"]
[WhiteFideId "24130532"]
[BlackFideId "13509373"]
[WhiteElo "2517"]
[BlackElo "2284"]
[Result "1-0"]
[Round "06"]
[TimeControl "180+2"]
[Date "2023.03.07"]
[WhiteClock "0:00:04"]
[BlackClock "0:00:12"]

1. e4 {[%clk 0:03:00]}  e5 {[%clk 0:02:58]} 2. Nf3 {[%clk 0:02:57]}  Nf6 {[%clk 0:02:59]} 3. Nxe5 {[%clk 0:02:57]}  d6 {[%clk 0:02:59]} 4. Nf3 {[%clk 0:02:57]}  Nxe4 {[%clk 0:03:00]} 5. d4 {[%clk 0:02:58]}  d5 {[%clk 0:03:00]} 6. Bd3 {[%clk 0:02:59]}  Bd6 {[%clk 0:03:01]} 7. O-O {[%clk 0:02:59]}  O-O {[%clk 0:03:01]} 8. h3 {[%clk 0:03:00]}  c6 {[%clk 0:03:01]} 9. c4 {[%clk 0:03:00]}  Re8 {[%clk 0:02:59]} 10. Nc3 {[%clk 0:03:00]}  Bf5 {[%clk 0:02:46]} 11. cxd5 {[%clk 0:02:55]}  cxd5 {[%clk 0:02:43]} 12. Nxd5 {[%clk 0:02:51]}  Nc6 {[%clk 0:02:42]} 13. Nc3 {[%clk 0:02:48]}  Nxc3 {[%clk 0:02:19]} 14. bxc3 {[%clk 0:02:44]}  Qd7 {[%clk 0:02:20]} 15. Rb1 {[%clk 0:02:40]}  b6 {[%clk 0:02:01]} 16. Bxf5 {[%clk 0:02:19]}  Qxf5 {[%clk 0:02:01]} 17. Be3 {[%clk 0:02:19]}  Na5 {[%clk 0:01:52]} 18. Qa4 {[%clk 0:01:34]}  Rac8 {[%clk 0:01:50]} 19. Rbc1 {[%clk 0:01:33]}  Qe6 {[%clk 0:01:45]} 20. Rfe1 {[%clk 0:01:18]}  Qc4 {[%clk 0:01:38]} 21. Qxc4 {[%clk 0:01:05]}  Nxc4 {[%clk 0:01:39]} 22. Nd2 {[%clk 0:01:06]}  Ba3 {[%clk 0:01:28]} 23. Nxc4 {[%clk 0:00:41]}  Bxc1 {[%clk 0:01:20]} 24. Nd6 {[%clk 0:00:41]}  Bxe3 {[%clk 0:01:12]} 25. Nxe8 {[%clk 0:00:41]}  Bd2 {[%clk 0:01:10]} 26. Nd6 {[%clk 0:00:36]}  Rd8 {[%clk 0:00:47]} 27. Re7 {[%clk 0:00:21]}  Kf8 {[%clk 0:00:39]} 28. Rxf7+ {[%clk 0:00:16]}  Kg8 {[%clk 0:00:39]} 29. Nb7 {[%clk 0:00:17]}  Kxf7 {[%clk 0:00:31]} 30. Nxd8+ {[%clk 0:00:17]}  Ke7 {[%clk 0:00:10]} 31. Nc6+ {[%clk 0:00:16]}  Kd6 {[%clk 0:00:10]} 32. Nxa7 {[%clk 0:00:15]}  Kd5 {[%clk 0:00:10]} 33. Kf1 {[%clk 0:00:12]}  Bxc3 {[%clk 0:00:10]} 34. Nb5 {[%clk 0:00:10]}  Bxd4 {[%clk 0:00:10]} 35. Nxd4 {[%clk 0:00:05]}  Kxd4 {[%clk 0:00:11]} 36. Ke2 {[%clk 0:00:05]}  Kc3 {[%clk 0:00:11]} 37. f4 {[%clk 0:00:05]}  Kb2 {[%clk 0:00:11]} 38. Kd3 {[%clk 0:00:03]}  Kxa2 {[%clk 0:00:12]} 39. Kc4 {[%clk 0:00:04]}  Kb2 {[%clk 0:00:12]} 40. g4 {[%clk 0:00:04]}  Ka3 {[%clk 0:00:10]} 41. Kb5 {[%clk 0:00:03]}  Kb3 {[%clk 0:00:11]} 42. f5 {[%clk 0:00:02]}  h6 {[%clk 0:00:11]} 43. h4 {[%clk 0:00:02]}  Kc3 {[%clk 0:00:10]} 44. g5 {[%clk 0:00:02]}  hxg5 {[%clk 0:00:11]} 45. hxg5 {[%clk 0:00:03]}  Kd4 {[%clk 0:00:12]} 46. f6 {[%clk 0:00:04]} 1-0


[Site "https://www.chess.com"]

[Event "Titled Tuesday Blitz March 07 Late 2023"]
[White "Karas, Marek"]
[Black "Diaz Perez, Michel Alejandro"]
[WhiteFideId "14928558"]
[BlackFideId "3517179"]
[WhiteElo "2233"]
[BlackElo "2333"]
[Result "1/2-1/2"]
[Round "06"]
[TimeControl "180+2"]
[Date "2023.03.07"]
[WhiteClock "0:00:03"]
[BlackClock "0:00:26"]

1. d4 {[%clk 0:03:00]}  Nf6 {[%clk 0:02:57]} 2. Nf3 {[%clk 0:03:00]}  d6 {[%clk 0:02:57]} 3. Nc3 {[%clk 0:02:59]}  Nbd7 {[%clk 0:02:57]} 4. e4 {[%clk 0:02:59]}  e5 {[%clk 0:02:58]} 5. Bc4 {[%clk 0:02:58]}  Be7 {[%clk 0:02:57]} 6. O-O {[%clk 0:02:56]}  O-O {[%clk 0:02:57]} 7. Re1 {[%clk 0:02:56]}  c6 {[%clk 0:02:57]} 8. a4 {[%clk 0:02:57]}  a5 {[%clk 0:02:55]} 9. Bd3 {[%clk 0:02:53]}  Re8 {[%clk 0:02:54]} 10. Ne2 {[%clk 0:02:53]}  Bf8 {[%clk 0:02:53]} 11. c3 {[%clk 0:02:51]}  h6 {[%clk 0:02:52]} 12. Ng3 {[%clk 0:02:51]}  g6 {[%clk 0:02:52]} 13. h3 {[%clk 0:02:48]}  Qc7 {[%clk 0:02:52]} 14. Be3 {[%clk 0:02:45]}  Bg7 {[%clk 0:02:51]} 15. Qd2 {[%clk 0:02:44]}  Kh7 {[%clk 0:02:49]} 16. Nh2 {[%clk 0:02:42]}  Nf8 {[%clk 0:02:36]} 17. f4 {[%clk 0:02:41]}  exf4 {[%clk 0:02:33]} 18. Bxf4 {[%clk 0:02:41]}  Ne6 {[%clk 0:02:34]} 19. Nf3 {[%clk 0:02:17]}  Nxf4 {[%clk 0:02:20]} 20. Qxf4 {[%clk 0:02:18]}  Be6 {[%clk 0:02:20]} 21. Rf1 {[%clk 0:01:54]}  Kg8 {[%clk 0:02:18]} 22. Bc2 {[%clk 0:01:48]}  Rad8 {[%clk 0:02:12]} 23. Rae1 {[%clk 0:01:48]}  Qb6 {[%clk 0:02:09]} 24. Qc1 {[%clk 0:01:44]}  Bc8 {[%clk 0:02:05]} 25. Kh1 {[%clk 0:01:36]}  c5 {[%clk 0:02:01]} 26. Bd3 {[%clk 0:01:16]}  Bd7 {[%clk 0:01:53]} 27. Qc2 {[%clk 0:01:12]}  Nh7 {[%clk 0:01:42]} 28. Bc4 {[%clk 0:01:06]}  Be6 {[%clk 0:01:37]} 29. Bxe6 {[%clk 0:00:59]}  Rxe6 {[%clk 0:01:38]} 30. Ne2 {[%clk 0:00:51]}  Rf6 {[%clk 0:01:13]} 31. Nd2 {[%clk 0:00:38]}  Re8 {[%clk 0:01:09]} 32. Rxf6 {[%clk 0:00:33]}  Nxf6 {[%clk 0:01:10]} 33. e5 {[%clk 0:00:20]}  dxe5 {[%clk 0:01:08]} 34. Nc4 {[%clk 0:00:19]}  Qc7 {[%clk 0:01:05]} 35. dxe5 {[%clk 0:00:14]}  Nd5 {[%clk 0:01:05]} 36. Qe4 {[%clk 0:00:09]}  Nb6 {[%clk 0:01:00]} 37. Nxb6 {[%clk 0:00:07]}  Qxb6 {[%clk 0:01:01]} 38. Qc2 {[%clk 0:00:04]}  Rxe5 {[%clk 0:01:00]} 39. Rd1 {[%clk 0:00:04]}  Qe6 {[%clk 0:00:57]} 40. Ng1 {[%clk 0:00:04]}  Re1 {[%clk 0:00:56]} 41. Rxe1 {[%clk 0:00:04]}  Qxe1 {[%clk 0:00:55]} 42. Qe2 {[%clk 0:00:05]}  Qc1 {[%clk 0:00:51]} 43. Kh2 {[%clk 0:00:04]}  Bf8 {[%clk 0:00:51]} 44. Nf3 {[%clk 0:00:03]}  Bd6+ {[%clk 0:00:42]} 45. g3 {[%clk 0:00:04]}  Kg7 {[%clk 0:00:42]} 46. Kg2 {[%clk 0:00:04]}  b6 {[%clk 0:00:38]} 47. Qd2 {[%clk 0:00:04]}  Qxd2+ {[%clk 0:00:37]} 48. Nxd2 {[%clk 0:00:05]}  f5 {[%clk 0:00:37]} 49. Nc4 {[%clk 0:00:05]}  Bc7 {[%clk 0:00:37]} 50. Kf3 {[%clk 0:00:05]}  Kf6 {[%clk 0:00:38]} 51. g4 {[%clk 0:00:04]}  fxg4+ {[%clk 0:00:37]} 52. hxg4 {[%clk 0:00:03]}  h5 {[%clk 0:00:37]} 53. gxh5 {[%clk 0:00:03]}  gxh5 {[%clk 0:00:38]} 54. Ne3 {[%clk 0:00:02]}  Ke6 {[%clk 0:00:38]} 55. b3 {[%clk 0:00:01]}  Kf6 {[%clk 0:00:37]} 56. Nd5+ {[%clk 0:00:02]}  Ke5 {[%clk 0:00:38]} 57. Nxc7 {[%clk 0:00:02]}  h4 {[%clk 0:00:38]} 58. Na8 {[%clk 0:00:01]}  h3 {[%clk 0:00:37]} 59. Nxb6 {[%clk 0:00:01]}  h2 {[%clk 0:00:35]} 60. Kg2 {[%clk 0:00:02]}  Ke4 {[%clk 0:00:36]} 61. Nc4 {[%clk 0:00:02]}  Kd3 {[%clk 0:00:36]} 62. Nxa5 {[%clk 0:00:03]}  Kxc3 {[%clk 0:00:37]} 63. Nb7 {[%clk 0:00:03]}  Kxb3 {[%clk 0:00:31]} 64. a5 {[%clk 0:00:03]}  c4 {[%clk 0:00:31]} 65. a6 {[%clk 0:00:02]}  c3 {[%clk 0:00:31]} 66. Nc5+ {[%clk 0:00:03]}  Kc4 {[%clk 0:00:31]} 67. a7 {[%clk 0:00:02]}  c2 {[%clk 0:00:30]} 68. a8=Q {[%clk 0:00:02]}  c1=Q {[%clk 0:00:29]} 69. Qg8+ {[%clk 0:00:02]}  Kc3 {[%clk 0:00:27]} 70. Qg7+ {[%clk 0:00:02]}  Kc2 {[%clk 0:00:27]} 71. Qg6+ {[%clk 0:00:02]}  Kd1 {[%clk 0:00:25]} 72. Qd3+ {[%clk 0:00:02]}  Qd2+ {[%clk 0:00:25]} 73. Qxd2+ {[%clk 0:00:02]}  Kxd2 {[%clk 0:00:26]} 74. Kxh2 {[%clk 0:00:03]} 1/2-1/2


[Site "https://www.chess.com"]

[Event "Titled Tuesday Blitz March 07 Late 2023"]
[White "Wartiovaara, Oliver"]
[Black "Papasimakopoulos, Alexandros"]
[WhiteFideId "513024"]
[BlackFideId "4244125"]
[WhiteElo "2214"]
[BlackElo "2359"]
[Result "0-1"]
[Round "06"]
[TimeControl "180+2"]
[Date "2023.03.07"]
[WhiteClock "0:00:04"]
[BlackClock "0:00:06"]

1. d4 {[%clk 0:03:00]}  e6 {[%clk 0:02:47]} 2. Nc3 {[%clk 0:02:44]}  d5 {[%clk 0:02:46]} 3. Bf4 {[%clk 0:02:39]}  Nf6 {[%clk 0:02:40]} 4. Nb5 {[%clk 0:02:39]}  Na6 {[%clk 0:02:36]} 5. e3 {[%clk 0:02:39]}  Bb4+ {[%clk 0:02:36]} 6. c3 {[%clk 0:02:36]}  Be7 {[%clk 0:02:37]} 7. a4 {[%clk 0:02:30]}  c6 {[%clk 0:02:35]} 8. Na3 {[%clk 0:02:30]}  Nb8 {[%clk 0:02:36]} 9. Nf3 {[%clk 0:02:23]}  Nbd7 {[%clk 0:02:36]} 10. Bd3 {[%clk 0:02:19]}  Nh5 {[%clk 0:02:35]} 11. Bg3 {[%clk 0:02:16]}  Nxg3 {[%clk 0:02:18]} 12. hxg3 {[%clk 0:02:14]}  h6 {[%clk 0:02:16]} 13. Qe2 {[%clk 0:02:10]}  c5 {[%clk 0:02:09]} 14. Ne5 {[%clk 0:01:46]}  cxd4 {[%clk 0:01:36]} 15. exd4 {[%clk 0:01:45]}  Nxe5 {[%clk 0:01:36]} 16. Qxe5 {[%clk 0:01:32]}  O-O {[%clk 0:01:28]} 17. Nc2 {[%clk 0:01:28]}  Re8 {[%clk 0:01:21]} 18. Ne3 {[%clk 0:01:22]}  Bf8 {[%clk 0:01:13]} 19. O-O-O {[%clk 0:01:02]}  Bd7 {[%clk 0:00:56]} 20. Ng4 {[%clk 0:00:46]}  Bxa4 {[%clk 0:00:46]} 21. Rxh6 {[%clk 0:00:44]}  gxh6 {[%clk 0:00:37]} 22. Nf6+ {[%clk 0:00:43]}  Qxf6 {[%clk 0:00:37]} 23. Qxf6 {[%clk 0:00:44]}  Bxd1 {[%clk 0:00:38]} 24. Kxd1 {[%clk 0:00:42]}  Bg7 {[%clk 0:00:39]} 25. Qh4 {[%clk 0:00:37]}  Rab8 {[%clk 0:00:25]} 26. Bb5 {[%clk 0:00:31]}  Red8 {[%clk 0:00:21]} 27. f4 {[%clk 0:00:31]}  a6 {[%clk 0:00:21]} 28. Bd3 {[%clk 0:00:30]}  b5 {[%clk 0:00:22]} 29. g4 {[%clk 0:00:28]}  b4 {[%clk 0:00:22]} 30. g5 {[%clk 0:00:28]}  hxg5 {[%clk 0:00:19]} 31. Qxg5 {[%clk 0:00:21]}  bxc3 {[%clk 0:00:19]} 32. bxc3 {[%clk 0:00:22]}  Rdc8 {[%clk 0:00:18]} 33. Kd2 {[%clk 0:00:13]}  Rb3 {[%clk 0:00:17]} 34. f5 {[%clk 0:00:10]}  Rcxc3 {[%clk 0:00:17]} 35. Bc2 {[%clk 0:00:09]}  exf5 {[%clk 0:00:11]} 36. Bxb3 {[%clk 0:00:07]}  Rxb3 {[%clk 0:00:12]} 37. Qxf5 {[%clk 0:00:06]}  Rb4 {[%clk 0:00:09]} 38. Qc8+ {[%clk 0:00:04]}  Kh7 {[%clk 0:00:07]} 39. Qf5+ {[%clk 0:00:04]}  Kg8 {[%clk 0:00:08]} 40. Qc8+ {[%clk 0:00:04]}  Bf8 {[%clk 0:00:08]} 41. Qxa6 {[%clk 0:00:05]}  Rxd4+ {[%clk 0:00:08]} 42. Ke3 {[%clk 0:00:06]}  Re4+ {[%clk 0:00:08]} 43. Kf3 {[%clk 0:00:06]}  Re5 {[%clk 0:00:08]} 44. Kf4 {[%clk 0:00:06]}  Bg7 {[%clk 0:00:07]} 45. g4 {[%clk 0:00:06]}  Kh7 {[%clk 0:00:05]} 46. Qd3+ {[%clk 0:00:03]}  Kg8 {[%clk 0:00:06]} 47. g5 {[%clk 0:00:03]}  Kh8 {[%clk 0:00:03]} 48. Qc2 {[%clk 0:00:03]}  Kg8 {[%clk 0:00:03]} 49. Kg4 {[%clk 0:00:03]}  Re8 {[%clk 0:00:02]} 50. Qd3 {[%clk 0:00:03]}  d4 {[%clk 0:00:02]} 51. Kh5 {[%clk 0:00:03]}  Re5 {[%clk 0:00:02]} 52. Kg4 {[%clk 0:00:03]}  Re8 {[%clk 0:00:03]} 53. Kf5 {[%clk 0:00:03]}  Rd8 {[%clk 0:00:02]} 54. g6 {[%clk 0:00:03]}  fxg6+ {[%clk 0:00:03]} 55. Kxg6 {[%clk 0:00:04]}  Rd6+ {[%clk 0:00:03]} 56. Kh5 {[%clk 0:00:04]}  Rd8 {[%clk 0:00:04]} 57. Qc4+ {[%clk 0:00:04]}  Kh8 {[%clk 0:00:05]} 58. Kg6 {[%clk 0:00:04]}  Rd6+ {[%clk 0:00:05]} 59. Kf7 {[%clk 0:00:04]}  Rf6+ {[%clk 0:00:05]} 60. Ke7 {[%clk 0:00:04]}  Rh6 {[%clk 0:00:05]} 61. Qc8+ {[%clk 0:00:04]}  Kh7 {[%clk 0:00:05]} 62. Kf7 {[%clk 0:00:04]}  Rf6+ {[%clk 0:00:06]} 63. Ke7 {[%clk 0:00:05]}  Rf3 {[%clk 0:00:06]} 64. Qc2+ {[%clk 0:00:04]}  d3 {[%clk 0:00:05]} 65. Qh2+ {[%clk 0:00:04]}  Bh6 {[%clk 0:00:05]} 66. Qe5 {[%clk 0:00:04]}  Re3 {[%clk 0:00:06]} 0-1


[Site "https://www.chess.com"]

[Event "Titled Tuesday Blitz March 07 Late 2023"]
[White "Slade, Theodore"]
[Black "Ozer, Omer Faruk"]
[WhiteFideId "426547"]
[BlackFideId "6354564"]
[WhiteElo "1964"]
[BlackElo "2260"]
[Result "1-0"]
[Round "06"]
[TimeControl "180+2"]
[Date "2023.03.07"]
[WhiteClock "0:00:50"]
[BlackClock "0:00:08"]

1. d4 {[%clk 0:03:00]}  Nf6 {[%clk 0:02:58]} 2. c4 {[%clk 0:03:01]}  g6 {[%clk 0:02:57]} 3. Nc3 {[%clk 0:03:00]}  Bg7 {[%clk 0:02:57]} 4. e4 {[%clk 0:03:01]}  d6 {[%clk 0:02:57]} 5. Nf3 {[%clk 0:03:02]}  O-O {[%clk 0:02:58]} 6. Be2 {[%clk 0:03:02]}  Bg4 {[%clk 0:02:54]} 7. Be3 {[%clk 0:03:02]}  Nfd7 {[%clk 0:02:54]} 8. Ng1 {[%clk 0:03:01]}  Bxe2 {[%clk 0:02:53]} 9. Ngxe2 {[%clk 0:03:02]}  c5 {[%clk 0:02:53]} 10. O-O {[%clk 0:03:02]}  Nc6 {[%clk 0:02:53]} 11. Qd2 {[%clk 0:03:00]}  a6 {[%clk 0:02:48]} 12. Rfd1 {[%clk 0:02:57]}  Rc8 {[%clk 0:02:46]} 13. dxc5 {[%clk 0:02:54]}  Nxc5 {[%clk 0:02:45]} 14. Rab1 {[%clk 0:02:49]}  Rc7 {[%clk 0:02:02]} 15. Bxc5 {[%clk 0:02:35]}  dxc5 {[%clk 0:02:01]} 16. Qxd8 {[%clk 0:02:35]}  Rxd8 {[%clk 0:01:58]} 17. Rxd8+ {[%clk 0:02:35]}  Nxd8 {[%clk 0:01:59]} 18. Rd1 {[%clk 0:02:33]}  Nc6 {[%clk 0:01:58]} 19. Nd5 {[%clk 0:02:32]}  Rc8 {[%clk 0:01:57]} 20. b3 {[%clk 0:02:23]}  e6 {[%clk 0:00:51]} 21. Nb6 {[%clk 0:02:13]}  Rc7 {[%clk 0:00:51]} 22. Rd7 {[%clk 0:02:02]}  Rxd7 {[%clk 0:00:48]} 23. Nxd7 {[%clk 0:02:03]}  Nd4 {[%clk 0:00:44]} 24. Kf1 {[%clk 0:01:56]}  Nxe2 {[%clk 0:00:41]} 25. Kxe2 {[%clk 0:01:57]}  Bd4 {[%clk 0:00:42]} 26. f3 {[%clk 0:01:52]}  f5 {[%clk 0:00:41]} 27. Kd3 {[%clk 0:01:51]}  Kf7 {[%clk 0:00:41]} 28. b4 {[%clk 0:01:51]}  Ke7 {[%clk 0:00:38]} 29. Nxc5 {[%clk 0:01:50]}  Bxc5 {[%clk 0:00:37]} 30. bxc5 {[%clk 0:01:51]}  e5 {[%clk 0:00:38]} 31. c6 {[%clk 0:01:42]}  b6 {[%clk 0:00:31]} 32. exf5 {[%clk 0:01:15]}  gxf5 {[%clk 0:00:30]} 33. g4 {[%clk 0:01:15]}  fxg4 {[%clk 0:00:08]} 34. fxg4 {[%clk 0:01:16]}  Kd6 {[%clk 0:00:08]} 35. Ke4 {[%clk 0:01:03]}  a5 {[%clk 0:00:08]} 36. g5 {[%clk 0:00:58]}  Kxc6 {[%clk 0:00:07]} 37. Kxe5 {[%clk 0:00:57]}  Kc5 {[%clk 0:00:07]} 38. h4 {[%clk 0:00:53]}  Kxc4 {[%clk 0:00:04]} 39. h5 {[%clk 0:00:54]}  b5 {[%clk 0:00:04]} 40. g6 {[%clk 0:00:54]}  hxg6 {[%clk 0:00:05]} 41. hxg6 {[%clk 0:00:53]}  b4 {[%clk 0:00:05]} 42. g7 {[%clk 0:00:53]}  a4 {[%clk 0:00:06]} 43. g8=Q+ {[%clk 0:00:54]}  Kc3 {[%clk 0:00:06]} 44. Qg3+ {[%clk 0:00:50]}  Kb2 {[%clk 0:00:07]} 45. Qf2+ {[%clk 0:00:50]}  Ka3 {[%clk 0:00:07]} 46. Kd4 {[%clk 0:00:50]}  b3 {[%clk 0:00:08]} 47. axb3 {[%clk 0:00:50]}  axb3 {[%clk 0:00:08]} 48. Kc3 {[%clk 0:00:50]} 1-0


[Site "https://www.chess.com"]

[Event "Titled Tuesday Blitz March 07 Late 2023"]
[White "Elissalt Cardenas, Hector"]
[Black "Martinez Ramirez, Lennis"]
[WhiteFideId "3500632"]
[BlackFideId "3509079"]
[WhiteElo "2202"]
[BlackElo "2439"]
[Result "0-1"]
[Round "06"]
[TimeControl "180+2"]
[Date "2023.03.07"]
[WhiteClock "0:01:41"]
[BlackClock "0:02:20"]

1. d4 {[%clk 0:02:47]}  d5 {[%clk 0:02:59]} 2. c4 {[%clk 0:02:47]}  e6 {[%clk 0:02:59]} 3. Nc3 {[%clk 0:02:46]}  Nf6 {[%clk 0:03:00]} 4. cxd5 {[%clk 0:02:46]}  exd5 {[%clk 0:03:00]} 5. Bg5 {[%clk 0:02:47]}  Be7 {[%clk 0:03:00]} 6. e3 {[%clk 0:02:47]}  c6 {[%clk 0:03:01]} 7. Bd3 {[%clk 0:02:47]}  O-O {[%clk 0:03:01]} 8. Qc2 {[%clk 0:02:48]}  h6 {[%clk 0:03:00]} 9. Bh4 {[%clk 0:02:47]}  Re8 {[%clk 0:02:59]} 10. Nf3 {[%clk 0:02:47]}  Nbd7 {[%clk 0:02:54]} 11. h3 {[%clk 0:02:47]}  Nh5 {[%clk 0:02:51]} 12. Bxe7 {[%clk 0:02:45]}  Qxe7 {[%clk 0:02:52]} 13. O-O {[%clk 0:02:45]}  a5 {[%clk 0:02:37]} 14. a3 {[%clk 0:02:37]}  g6 {[%clk 0:02:36]} 15. e4 {[%clk 0:01:51]}  dxe4 {[%clk 0:02:27]} 16. Bxe4 {[%clk 0:01:47]}  Ndf6 {[%clk 0:02:26]} 17. Bxg6 {[%clk 0:01:43]}  fxg6 {[%clk 0:02:26]} 18. Qxg6+ {[%clk 0:01:43]}  Qg7 {[%clk 0:02:26]} 19. Qd3 {[%clk 0:01:41]}  Nf4 {[%clk 0:02:20]} 0-1


[Site "https://www.chess.com"]